Cogmind - Beta 15 @@@ ROGUE MODE // 2025.07.24 @ 03:31:25 Player: shapeshifter Result: Destroyed by LQ-O68(j) with Overtuned Pulse Rifle Performance ------------- Evolutions (0) 0 Regions Visited (3) 600 Robots Destroyed (19) 95 Value Destroyed (455) 455 Prototype IDs (0) 0 Alien Tech Used (0) 0 Bonus (0) 0 TOTAL SCORE: 1150 Bonus ------- None Cogmind --------- Core Integrity 0/250 Matter 275/300 Energy 136/160 System Corruption 0% Temperature Hot (299) Movement Treading (320) Ox2 Location -8/Recycling Parts ------- > --- POWER (1) -------- Light Nuclear Core > --- PROPULSION (2) --- Light Treads > --- UTILITY (2) ------ High-capacity Storage Unit > --- WEAPON (2) ------- Medium Laser Particle Gun > --- INVENTORY (20) --- Light Treads Light Treads Scrap Engine Small Storage Unit High-capacity Storage Unit Huge Storage Unit High-capacity Matter Pod (200) Structural Scanner Sensor Array ECM Suite Light Armor Plating Scrap Shield Scrap Shield Fragment (48) Peak State ------------ > --- POWER ------------ Light Nuclear Core > --- PROPULSION ------- Light Treads Light Treads > --- UTILITY ---------- High-capacity Storage Unit > --- WEAPON ----------- Medium Laser Particle Gun > --- INVENTORY -------- Light Treads Light Treads Scrap Engine Small Storage Unit High-capacity Storage Unit Huge Storage Unit High-capacity Matter Pod Structural Scanner Sensor Array ECM Suite Light Armor Plating Scrap Shield Scrap Shield Fragment [Rating: 12] Favorites ----------- Power Light Ion Engine Engine Light Ion Engine Power Core Light Nuclear Core Propulsion Light Treads Treads Light Treads Wheel Compact Wheel Utility Seismic Detector Device Seismic Detector Storage High-capacity Storage Unit Weapon Assault Rifle Energy Gun Particle Gun Ballistic Gun Assault Rifle Build | -11 -10 -10 -8 ------- Run | Yrd Mat Sub Rec Slots Evolved . | . . . . Power . | . . . . Propulsion . | . . . . Utility . | . . . . Weapon . | . . . . Parts Attached 15 | 7 3 3 2 Power 3 | 1 . 1 1 Engine 2 | 1 . 1 . Core 1 | . . . 1 Reactor . | . . . . Propulsion 5 | 2 1 1 1 Treads 3 | 2 . . 1 Leg . | . . . . Wheel 2 | . 1 1 . Hover . | . . . . Flight . | . . . . Utility 3 | 2 1 . . Device 1 | 1 . . . Storage 2 | 1 1 . . Processor . | . . . . Hackware . | . . . . Protection . | . . . . Artifact . | . . . . Weapon 4 | 2 1 1 . Energy Gun 2 | 1 1 . . Energy Cannon . | . . . . Ballistic Gun 2 | 1 . 1 . Ballistic Cannon . | . . . . Launcher . | . . . . Special Weapon . | . . . . Impact Weapon . | . . . . Slashing Weapon . | . . . . Piercing Weapon . | . . . . Special Melee Weapon . | . . . . Unidentified Prototypes . | . . . . Parts Lost 9 | . . 2 7 Power 2 | . . 1 1 Propulsion 4 | . . 1 3 Utility 1 | . . . 1 Weapon 2 | . . . 2 Highest Loss Streak 7 | . . 2 7 To Critical Strikes . | . . . . Average Backups 12 | 3 12 14 15 Power 1 | . 1 1 1 Propulsion 3 | 1 3 3 3 Utility 5 | . 4 6 8 Weapon 1 | . 1 2 1 Tool/Special . | . . . . Unused Backups 10 | . . . 10 Power . | . . . . Propulsion 2 | . . . 2 Utility 8 | . . . 8 Weapon . | . . . . Tool/Special . | . . . . Average Slot Usage (%) 98 | . 100 99 97 Engine 13 | . 14 13 13 Treads 14 | . 15 14 15 Wheel 13 | . 12 13 12 Device 13 | . 14 14 12 Storage 14 | . 14 14 14 Energy Gun 10 | . 14 13 1 Ballistic Gun 17 | . 14 14 25 Peak Build Rating 12 | 7 9 10 12 Average Rating 8 | 5 8 9 9 On Entrance 6 | . 7 9 9 Naked Turns . | . . . . Heaviest Build 49 | 13 49 49 47 Greatest Support 40 | 40 40 16 40 Greatest Overweight (x) 4 | . 3 4 4 Average Overweight (x) 2 | . 1 3 3 Largest Inventory Capacity 20 | 8 20 20 20 Average Capacity 18 | 7 19 20 20 Most Carried 20 | 5 14 17 20 Average Carried 13 | 3 12 15 17 Final Capacity 20 | 8 20 20 20 Final Carried 15 | 4 14 15 15 Class Distribution -------------------- 100% | Mutant Dominant Class ---------------- Mutant | -10/Materials Mutant | -10/Subcaves Mutant | -8/Recycling Resources | -11 -10 -10 -8 ----------- Run | Yrd Mat Sub Rec Matter Collected 664 | 288 117 251 8 Remotely . | . . . . Salvage Created 628 | 116 118 196 198 Parts 50 | 12 8 18 12 Haulers Intercepted . | . . . . Recyclers Shooed . | . . . . Parts Field Recycled . | . . . . Retrieved Matter . | . . . . Parts Self-Destructed 23 | . . 23 . Prevented . | . . . . Kills | -11 -10 -10 -8 ------- Run | Yrd Mat Sub Rec Combat Hostiles Destroyed 11 | . 2 6 3 Guns 11 | . 2 6 3 Classes Destroyed 8 | 2 2 2 2 Tunneler 4 | 4 . . . Recycler 1 | 1 . . . Turret 2 | . . 2 . Watcher 1 | . 1 . . Swarmer 4 | . . 4 . Grunt 4 | . 2 2 . Sentry 1 | . . . 1 Scrapper 2 | . . . 2 Best Kill Streak 6 | 2 2 6 2 Combat Bots Only 4 | . 2 4 2 Max Kills in Single Turn 2 | 1 1 2 1 Gunslinging . | . . . . Exploded . | . . . . Melee . | . . . . Uniques/NPCs Destroyed . | . . . . Combat | -11 -10 -10 -8 -------- Run | Yrd Mat Sub Rec Hostile Shots Fired 121 | . 10 72 39 Missed 35 | . 3 25 7 Hits 86 | . 7 47 32 Projectile 86 | . 7 47 32 Critical Strikes 5 | . 2 . 3 Damage Taken 1155 | . 89 374 692 Core 259 | . 11 117 131 Absorbed by Shields . | . . . . Core Remaining (%) 100 | 100 . . . Volleys Fired 48 | 15 7 19 7 Largest 2 | 2 2 2 2 Hottest 115 | 70 70 85 115 Shots Fired 93 | 30 12 37 14 Gun 93 | 30 12 37 14 Cannon . | . . . . Launcher . | . . . . Special . | . . . . Kinetic 53 | 15 7 27 4 Thermal 40 | 15 5 10 10 Explosive . | . . . . Electromagnetic . | . . . . Robot Hit Streak 15 | 7 5 11 15 Robot Miss Streak 4 | 4 3 2 1 Penetration Max . | . . . . Secondary Targets 2 | . . 2 . Max Gunslinging Chain 1 | . . 1 . Shots Hit Robots 59 | 16 7 27 9 Core Hits 30 | 5 5 15 5 Critical Kills . | . . . . Critical Parts Destroyed . | . . . . Critical Strikes . | . . . . Melee Attacks . | . . . . Impact . | . . . . Slashing . | . . . . Piercing . | . . . . Sneak Attacks . | . . . . Combat Hostiles . | . . . . Follow-up Attacks . | . . . . Damage Inflicted 766 | 215 87 350 114 Guns 766 | 215 87 350 114 Cannons . | . . . . Explosions . | . . . . Melee . | . . . . Ramming . | . . . . Kinetic 474 | 115 62 261 36 Thermal 292 | 100 25 89 78 Explosive . | . . . . Electromagnetic . | . . . . Impact . | . . . . Slashing . | . . . . Piercing . | . . . . Highest Corruption . | . . . . Average Corruption . | . . . . Corruption Purged . | . . . . Corruption Blocked . | . . . . Overload Shots . | . . . . Overflow Damage . | . . . . Projectiles . | . . . . Explosions . | . . . . Melee . | . . . . Knockbacks . | . . . . Impact . | . . . . Kinetic . | . . . . Secondary . | . . . . Self-Inflicted Damage . | . . . . Shots . | . . . . Rammed . | . . . . Targets Rammed . | . . . . Kicked . | . . . . Crushed . | . . . . Highest Temperature 373 | 63 92 10 373 Average Temperature 69 | 20 54 6 159 Received Heat Transfer 777 | . 87 246 444 Effects 2 | . . . 2 Interference 2 | . . . 2 Siege Activations . | . . . . Martial Activations . | . . . . Shielding Activations . | . . . . Robots Disrupted . | . . . . Combat Hostiles . | . . . . Robots Corrupted . | . . . . Combat Hostiles . | . . . . Parts Fried . | . . . . Impact Corruptions . | . . . . Robots Melted . | . . . . Combat Hostiles . | . . . . Parts Melted 2 | . . . 2 Heat Transferred 742 | 296 74 222 150 Parts Sabotaged . | . . . . Parts Stolen . | . . . . Parts Stripped . | . . . . Power Chain Reactions . | . . . . Alert | -11 -10 -10 -8 ------- Run | Yrd Mat Sub Rec Maximum Alert Level . | . . . . Low Security (%) 100 | 100 100 . 100 Level 1 . | . . . . Level 2 . | . . . . Level 3 . | . . . . Level 4 . | . . . . Level 5 . | . . . . High Security . | . . . . Max Security . | . . . . Peak Influence 66 | 10 50 . 66 Initial 46 | . . . 46 Average 8 | 1 9 . 12 Influence Increases 332 | 25 87 200 20 Destroy 0b10 Robot/C 220 | . 40 160 20 Destroy 0b10 Robot/NC 30 | 25 5 . . Destroy Leader 22 | . 12 10 . Lose Combat Pursuer 60 | . 30 30 . Influence Decreases 332 | 25 87 102 118 Entered New Map 52 | . . . 52 Time Decay 260 | 25 87 82 66 Lost Part 20 | . . 20 . Squads Dispatched 1 | . 1 . . Investigation 1 | . 1 . . Extermination . | . . . . Reinforcement . | . . . . Assault . | . . . . Garrison . | . . . . Intercept . | . . . . Searches Triggered . | . . . . Construction Impeded . | . . . . Haulers Reinforced . | . . . . Active Scanning Responses . | . . . . Cargo Convoy Interrupts . | . . . . Stealth | -11 -10 -10 -8 --------- Run | Yrd Mat Sub Rec Distress Signals 1 | . 1 . . Communications Jammed . | . . . . Distress Signals . | . . . . Times Spotted 19 | . 5 10 4 Peak Tracking Total 6 | . 4 6 4 Tactical Retreats 2 | . 1 1 . Traps | -11 -10 -10 -8 ------- Run | Yrd Mat Sub Rec Traps Triggered 1 | . 1 . . Indirectly . | . . . . Trap Hack Attempts . | . . . . Triggered . | . . . . Disarmed . | . . . . Reprogrammed . | . . . . Reused . | . . . . Traps Extracted . | . . . . Installed . | . . . . Triggered . | . . . . Machines | -11 -10 -10 -8 ---------- Run | Yrd Mat Sub Rec Machines Disabled . | . . . . Max in Single Turn . | . . . . Machines Repaired . | . . . . Machines Dismantled . | . . . . Machines Sabotaged . | . . . . Overloaded Fab Kills . | . . . . Hacking | -11 -10 -10 -8 --------- Run | Yrd Mat Sub Rec Machines Accessed 4 | . . . 4 Terminals 1 | . . . 1 Fabricators . | . . . . Repair Stations . | . . . . Recycling Units 2 | . . . 2 Scanalyzers . | . . . . Garrison Access . | . . . . Total Hacks 8 | . . . 8 Successful 4 | . . . 4 Failed 4 | . . . 4 Catastrophic 1 | . . . 1 Database Lockouts . | . . . . Manual 5 | . . . 5 Terminals 3 | . . . 3 Fabricators . | . . . . Repair Stations . | . . . . Recycling Units 3 | . . . 3 Scanalyzers . | . . . . Garrison Access . | . . . . Terminal Hacks 2 | . . . 2 Release Object 2 | . . . 2 Fabricator Hacks . | . . . . Repair Station Hacks . | . . . . Recycling Unit Hacks 1 | . . . 1 Report Inventory 1 | . . . 1 Scanalyzer . | . . . . Garrison Access Hacks . | . . . . Unauthorized Hacks 1 | . . . 1 Terminals 1 | . . . 1 Botnet 1 | . . . 1 Fabricators . | . . . . Repair Stations . | . . . . Recycling Units . | . . . . Scanalyzers . | . . . . Garrison Access . | . . . . Data Cores Recovered . | . . . . Used . | . . . . Hacking Detections 2 | . . . 2 Full Trace Events 1 | . . . 1 Feedback Events . | . . . . Feedback Blocked . | . . . . Robot Schematics Acquired . | . . . . Robots Built . | . . . . Authchips . | . . . . Time . | . . . . Total Robot Build Rating . | . . . . Part Schematics Acquired . | . . . . Parts Built . | . . . . Authchips . | . . . . Time . | . . . . Total Part Build Rating . | . . . . Parts Repaired . | . . . . Time . | . . . . Parts Recycled . | . . . . Recycled Matter . | . . . . Retrieved Matter . | . . . . Retrieved Components . | . . . . Parts Scanalyzed . | . . . . Part Schematics Acquired . | . . . . Parts Damaged . | . . . . Bothacking | -11 -10 -10 -8 ------------ Run | Yrd Mat Sub Rec Used RIF Installer . | . . . . Robots Hacked . | . . . . Non-combat . | . . . . Combat . | . . . . Robot Hacks Applied . | . . . . Relay Couplers Released . | . . . . Fabnet Peak Effective % . | . . . . Robots Rewired . | . . . . Allies Hacked . | . . . . Hacks Repelled . | . . . . Allies | -11 -10 -10 -8 -------- Run | Yrd Mat Sub Rec Total Allies . | . . . . Largest Group . | . . . . Highest-Rated Group . | . . . . Highest-Rated Ally . | . . . . Total Orders . | . . . . Ally Attacks . | . . . . Total Damage . | . . . . Kills . | . . . . Allies Corrupted . | . . . . Allies Melted . | . . . . Intel | -11 -10 -10 -8 ------- Run | Yrd Mat Sub Rec Active Infowar (turns) 1491 | 15 363 781 332 Seismic 1491 | 15 363 781 332 Robot Analysis Total . | . . . . Derelict Logs Recovered 1 | . . 1 . Drone Launches . | . . . . Drone Recoveries . | . . . . Exploration | -11 -10 -10 -8 ------------- Run | Yrd Mat Sub Rec Turns Passed 1764 | 247 363 781 373 Spaces Moved 1003 | 127 148 499 229 Core 16 | 16 . . . Treads 135 | 111 17 . 7 Legs . | . . . . Wheels 852 | . 131 499 222 Hover . | . . . . Flight . | . . . . Fastest Speed 50 | 50 130 130 140 Average Speed 143 | 146 135 144 143 Slowest Speed 240 | 160 160 145 240 Overloaded Moves . | . . . . Propulsion Burnouts . | . . . . Robots Hopped . | . . . . Potential Cave-ins . | . . . . Cave-ins Triggered . | . . . . Exploration Rate (%) 23 | 6 26 32 28 Regions Visited 3 Branch Regions 2 Pre-discovered Areas . | . . . . Known Exits Taken . | . . . . Unknown Exits Taken 3 | 1 1 1 . Scrap Searched . | . . . . Spaces Dug . | . . . . Terrain Destroyed . | . . . . Melee . | . . . . Projectile . | . . . . AOE . | . . . . Terrain Rammed . | . . . . Walls Destroyed . | . . . . Machines Disabled . | . . . . Actions | -11 -10 -10 -8 --------- Run | Yrd Mat Sub Rec Total 1238 | 159 296 522 261 Wait 145 | . 129 . 16 Move 1000 | 126 147 498 229 Hop . | . . . . Pick Up 27 | 11 10 2 4 Fast Attach . | . . . . Attach 14 | 7 . 2 5 Detach . | . . . . Swap 4 | . 3 1 . Drop . | . . . . Fire 48 | 15 7 19 7 Melee . | . . . . Ram . | . . . . Kick . | . . . . Crush . | . . . . Escape Stasis . | . . . . Rewire . | . . . . Trap . | . . . . Miscellaneous . | . . . . Route ------- -11/Scrapyard -10/Materials -10/Subcaves -8/Recycling History --------- Turn | Location | Event 37 | -11/Scrapyard | Discovered new exit (range 15) 248 | -11/Scrapyard | Entered Materials 300 | -10/Materials | Build established: Mutant 595 | -10/Materials | Discovered new exit (range 9) 611 | -10/Materials | Entered Subcaves 811 | -10/Subcaves | Learned Materials emergency access door positions 918 | -10/Subcaves | A swath of the cavern ceiling suddenly collapsed 1327 | -10/Subcaves | Discovered new exit (range 14) 1368 | -10/Subcaves | Core integrity fell below 50% 1392 | -10/Subcaves | Entered Recycling 1666 | -8/Recycling | Scanned before Scraplab entrance 1685 | -8/Recycling | Entered Scraplab 1709 | -8/Recycling | Discovered new exit (range 2) 1718 | -8/Recycling | Angered Scraplab inhabitants 1720 | -8/Recycling | Found Prototype Device 1751 | -8/Recycling | Core integrity fell below 20% 1765 | -8/Recycling | Destroyed by LQ-O68(j) with Overtuned Pulse Rifle Last Messages --------------- Prototype Device integrity failing. 01731_ Critical hit (Burn: +50). 01732_ Machine disabled. 01735_ LJ-MB4(j) heat damages Lgt. Deuterium Engine. Prototype Device integrity failing. 01742_ Lgt. Assault Rifle destroyed. 01742_ Critical hit (Burn: +50). 01744_ Mak. Salvage Targeting Computer melted. 01744_ Lgt. Deuterium Engine melted. 01744_ LJ-MB4(j) destroyed. 01748_ Critical hit (Burn: +50). Prototype Device integrity failing. 01753_ 6C-WNN(j) destroyed. 01756_ Lgt. Ion Engine destroyed. 01757_ Overheating: System interference. 01757_ Med. Laser temporarily disabled. 01757_ Particle Gun temporarily disabled. Prototype Device integrity failing. 01764_ Lgt. Treads destroyed. Map ----- +----------------------------------------------------+ | ?########??????????????????? | | ?# #??????????????????? | | ?#"" #??????????????????? | | ?#"T #??????????????????? | | ##"" #??????????????????? | | + #??????????????????? | | ## """ #??????????????????? | | ?# """ #???######?????????? | | ?# """ #???# #?????????? | | ?# #???# #??###????? | | ?# """ ##### #### ##???? | | ## """ + + # #???? | | "# """ ##### ##### #???? | | "# #???# #???# #???? | | "########???# #???# #???? | | ##??????????######???# #???? | | #????????##??????#####/####? | | #?????### ##?????#"" "#? | | #?????# #?????#"& ""#? | | ####### #?????#" "#? | | + #?????#"" X"#? | | ##### # #?????#"& "#? | | #???# # #?????# =%""#? | | ????# # #?????#"X ! "#? | | ????# # #?????#" ###? | | ##### # #?????# "" #@#? | | + #?????# """ =j=#? | | ##+## # #?????##########? | | # # #???????????????? | | # # #???????????????? | | # # #???????????????? | | # ######???????????????? | | # #????????????????????? | | # #??######????????????? | | # #??# ##???????????? | | # #??# #???????????? | | # #??# #????????????? | | # #### #????????????? | | # + #????????????? | | # #### #????????????? | | # %%## #????????????? | | ###+# %%## #????????????? | | ??# % ## #????????????? | | ??# #### #???????????? | | ??# #??# ##???????????? | | ??# #??# #????????????? | | ??# #### #????????????? | | ??# ""#######????????????? | | ??# Y"#??????????????????? | | ??# ""#??????????????????? | +----------------------------------------------------+ Best States ------------- Heat Dissipation 25 Energy Generation 10 Energy Capacity 125 Matter Stores 300 Matter Capacity 300 Sight Range 16 Terrain Scan Density 10 Evasion (%) 50 Recoil Reduction 2 Item Schematics ----------------- None Robot Schematics ------------------ None Fabricated ------------ Nothing Repaired ---------- Nothing Alien Tech Used ----------------- None Achievements -------------- None Challenges ------------ None Game ------ Seed DiametricLobotomyChip Manual? 0 Play Time 00:13:22 Cumulative 43.9 hours Start 2025.07.24 @ 03:18:47 End 2025.07.24 @ 03:31:25 Sessions 1 Manual Loads 0 Difficulty Rogue Special Mode None Game No. 107 Rogue 107 Adventurer 0 Explorer 0 Win Type - Total 0 Types 0/0/0/0/0/0/0/0/0/0 Lore% 38 Gallery% 36 Achievement% 30 Wizard Run 0 Options --------- Layout 1 ASCII 0 Keyboard 0 Movement Mouse Keybinds 0 Fullscreen 1 Font 24/Smallcaps Map View 50x35 Zoom Use 0% Tactical HUD 1 Map Filters NONE Filters NONE Steam 1 RUN: 7af759a8-5cd7-470a-a6d3-5603e9b518a6